bitfinex/quotes_SOLUSD_20220306
["timestamp","ask_amount","ask_price","bid_price","bid_amount"]
[1646530081378,5.567,89.817,89.767,2.83613526]
[1646530081577,6.0914291,89.816,89.767,2.83613526]
[1646530081777,5.567,89.815,89.767,2.83613526]
[1646530081977,6.0914291,89.814,89.767,2.83613526]
[1646530082175,5.567,89.813,89.767,2.83613526]
[1646530088085,23.8794,89.814,89.767,2.83613526]
[1646530088983,6.09203875,89.813,89.767,2.83613526]
[1646530092984,23.8794,89.814,89.767,2.83613526]
[1646530093183,6.0920611,89.813,89.767,2.83613526]
[1646530093385,6.0920611,89.813,89.769,66.81]
[1646530093584,23.8794,89.814,89.769,66.81]
[1646530093784,23.8794,89.814,89.77,2.83613526]
[1646530094994,23.8794,89.814,89.771,5.567]
[1646530095485,23.8794,89.814,89.772,2.83613526]
[1646530095887,23.8794,89.814,89.773,5.567]
[1646530098689,23.8794,89.814,89.774,66.81]
[1646530098891,23.8794,89.814,89.775,5.567]
[1646530099089,23.8794,89.814,89.776,66.81]
[1646530099490,23.8794,89.814,89.776,69.64613526]
[1646530099691,23.8794,89.814,89.777,2.83613526]
[1646530106598,6.09195513,89.813,89.777,2.83613526]
[1646530106798,23.8794,89.814,89.777,2.83613526]
[1646530107401,6.09196007,89.813,89.777,2.83613526]
[1646530108001,23.8794,89.814,89.777,2.83613526]
[1646530108201,6.09196715,89.813,89.777,2.83613526]
[1646530108402,23.8794,89.814,89.777,2.83613526]
[1646530108804,6.09190685,89.813,89.777,2.83613526]
[1646530109703,3.03211574,89.829,89.781,66.81]
[1646530109925,3.03211574,89.842,89.781,73.33]
[1646530110111,3.03211574,89.846,89.783,66.81]
[1646530110313,6.08983078,89.847,89.783,66.81]
[1646530110510,6.08983078,89.847,89.785,66.81]
[1646530110914,23.8914,89.848,89.787,66.81]
[1646530111110,23.8914,89.848,89.801,66.81]
[1646530111411,23.8914,89.848,89.805,66.81]
[1646530111612,23.8914,89.848,89.806,5.566]
[1646530112510,23.8914,89.848,89.805,69.64613526]
[1646530113210,23.8914,89.848,89.805,2.83613526]
[1646530114312,23.8914,89.848,89.806,66.81]
[1646530114511,23.8914,89.848,89.807,5.566]
[1646530114711,23.8914,89.848,89.808,66.81]
[1646530114912,23.8914,89.848,89.808,69.64613526]
[1646530115715,23.8914,89.848,89.809,66.81]
[1646530115916,23.8914,89.848,89.81,5.566]
[1646530116115,1.5164482,89.842,89.81,5.566]
[1646530116515,1.5164482,89.84,89.809,66.81]
[1646530116921,4.34137314,89.841,89.809,66.81]
[1646530117119,1.5164482,89.842,89.809,66.81]
[1646530118940,1.5164482,89.841,89.808,2.83613526]
[1646530119142,1.5164482,89.841,89.792,2.83613526]
[1646530119341,1.5164482,89.836,89.792,2.83613526]
[1646530119547,1.5164482,89.828,89.788,5.566]
[1646530119746,1.5164482,89.826,89.788,5.566]
[1646530119943,2.5053791,89.825,89.788,5.566]
[1646530120143,1.5164482,89.824,89.788,5.566]
[1646530121345,1.5164482,89.823,89.788,5.566]
[1646530121644,1.5164482,89.822,89.788,5.566]
[1646530122646,1.5164482,89.824,89.788,5.566]
[1646530122845,1.5164482,89.823,89.788,5.566]
[1646530123456,1.5164482,89.822,89.788,5.566]
[1646530123647,1.5164482,89.821,89.788,5.566]
[1646530125752,1.5164482,89.822,89.788,5.566]
[1646530126153,1.5164482,89.823,89.788,5.566]
[1646530127055,16.7101,89.87,89.788,5.566]
[1646530127056,1.5164482,89.835,89.789,69.64613526]
[1646530127255,1.5164482,89.835,89.791,66.81]
[1646530127461,1.5164482,89.838,89.791,66.81]
[1646530127854,1.5164482,89.839,89.792,2.83613526]
[1646530128055,1.5164482,89.838,89.792,2.83613526]
[1646530128255,1.5164482,89.837,89.792,2.83613526]
[1646530128457,1.5164482,89.838,89.792,2.83613526]
[1646530129562,1.5164482,89.842,89.792,2.83613526]
[1646530131666,1.5164482,89.843,89.792,2.83613526]
[1646530131967,1.5164482,89.842,89.792,2.83613526]
[1646530133471,1.5164482,89.841,89.792,2.83613526]
[1646530134573,1.5164482,89.839,89.792,2.83613526]
[1646530134771,1.5164482,89.839,89.792,69.64613526]
[1646530134975,1.5164482,89.831,89.782,2.83613526]
[1646530135171,1.5164482,89.821,89.782,2.83613526]
[1646530135371,1.5164482,89.817,89.779,66.81]
[1646530135672,1.5164482,89.816,89.779,66.81]
[1646530135871,1.5164482,89.822,89.779,66.81]
[1646530136075,1.5164482,89.822,89.78,2.83613526]
[1646530136290,1.5164482,89.827,89.781,66.81]
[1646530136488,1.5164482,89.826,89.781,66.81]
[1646530136688,1.5164482,89.826,89.783,66.81]
[1646530136888,22.9203,89.838,89.783,66.81]
[1646530136889,1.5164482,89.827,89.783,66.81]
[1646530137088,1.5164482,89.827,89.784,2.83613526]
[1646530137893,1.5164482,89.823,89.784,2.83613526]
[1646530139291,1.5164482,89.822,89.784,2.83613526]
[1646530140294,1.5164482,89.823,89.784,2.83613526]
[1646530140498,1.5164482,89.817,89.784,2.83613526]
[1646530140693,1.5164482,89.818,89.784,2.83613526]
[1646530140895,1.5164482,89.819,89.784,2.83613526]
[1646530141994,1.5164482,89.82,89.784,2.83613526]
[1646530144697,1.5164482,89.82,89.783,66.81]
[1646530144896,1.5164482,89.817,89.783,66.81]
[1646530145096,5.567,89.816,89.783,66.81]
[1646530145506,1.5164482,89.814,89.783,66.81]
[1646530147700,1.0164482,89.814,89.783,66.81]
[1646530147903,5.567,89.832,89.783,66.81]
[1646530148702,13.72938249,89.833,89.783,66.81]
[1646530150707,5.567,89.832,89.783,66.81]
[1646530156117,13.72938249,89.833,89.783,66.81]
[1646530158620,5.567,89.832,89.783,66.81]
[1646530162122,6.09102855,89.831,89.783,66.81]
[1646530162322,5.567,89.83,89.783,66.81]
[1646530162925,5.567,89.832,89.783,66.81]
[1646530163126,6.09103748,89.831,89.783,66.81]
[1646530163327,5.567,89.83,89.783,66.81]
[1646530163728,5.567,89.832,89.783,66.81]
[1646530163929,6.09107527,89.831,89.783,66.81]
[1646530164128,5.567,89.83,89.783,66.81]
[1646530164530,5.567,89.832,89.783,66.81]
[1646530164730,6.09106191,89.831,89.783,66.81]
[1646530165028,5.567,89.83,89.783,66.81]
[1646530165230,6.09106191,89.829,89.783,66.81]
[1646530165430,5.567,89.828,89.783,66.81]
[1646530165629,6.09106191,89.827,89.783,66.81]
[1646530166031,22.822,89.826,89.783,66.81]
[1646530167330,6.09153997,89.825,89.771,2.83613526]
[1646530167530,6.09153997,89.825,89.761,2.83613526]
[1646530167531,3.03211574,89.821,89.761,2.83613526]
[1646530167730,3.03211574,89.817,89.753,24.7146]
[1646530167933,5.567,89.816,89.753,24.7146]
[1646530168134,6.09153997,89.815,89.753,24.7146]
[1646530168332,28.389,89.814,89.754,66.81]
[1646530168732,111.5,89.813,89.753,24.7146]
[1646530168932,5.567,89.812,89.745,2.83613526]
[1646530169134,111.5,89.81,89.737,23.3751]
[1646530169334,3.03211574,89.807,89.725,2.83613526]
[1646530169532,3.03211574,89.8,89.726,66.81]
[1646530169733,3.03211574,89.796,89.726,66.81]
[1646530169960,111.5,89.794,89.726,66.81]
[1646530170160,111.5,89.792,89.726,66.81]
[1646530170359,5.57,89.791,89.726,66.81]
[1646530170659,5.57,89.791,89.725,2.83613526]
[1646530171161,3.03211574,89.787,89.725,2.83613526]
[1646530171362,5.57,89.786,89.725,2.83613526]
[1646530171761,111.5,89.784,89.725,2.83613526]
[1646530172059,5.57,89.783,89.725,2.83613526]
[1646530172660,111.5,89.781,89.725,2.83613526]
[1646530172859,5.57,89.78,89.725,2.83613526]
[1646530176767,5.57,89.78,89.726,49.37081934]
[1646530176965,5.57,89.781,89.726,49.37081934]
[1646530177365,5.57,89.781,89.725,2.83613526]
[1646530179664,23.7376,89.782,89.725,2.83613526]
[1646530181167,23.7376,89.782,89.722,66.81]
[1646530182868,5.57,89.781,89.722,66.81]
[1646530185972,23.7376,89.782,89.722,66.81]
[1646530186671,111.5,89.781,89.722,66.81]
[1646530186872,111.5,89.781,89.721,23.3751]
[1646530187172,23.7376,89.782,89.721,23.3751]
[1646530188272,5.57,89.781,89.721,23.3751]
[1646530193690,117.07,89.781,89.721,23.3751]
[1646530196092,5.57,89.781,89.721,23.3751]
[1646530198715,5.57,89.781,89.722,66.81]
[1646530200209,23.7376,89.782,89.722,66.81]
[1646530200611,5.57,89.781,89.722,66.81]
[1646530200814,6.09408358,89.78,89.722,66.81]
[1646530201013,5.57,89.779,89.722,66.81]
[1646530201212,5.57,89.781,89.722,66.81]
[1646530201410,117.07,89.781,89.722,66.81]
[1646530201910,111.5,89.779,89.722,66.81]
[1646530202110,117.07,89.779,89.722,66.81]
[1646530202312,111.5,89.779,89.722,66.81]
[1646530202515,6.09455395,89.778,89.722,66.81]
[1646530202712,6.09455395,89.778,89.721,23.3751]
[1646530202713,117.071,89.777,89.721,23.3751]
[1646530203114,3.03211574,89.774,89.695,22.73011941]
[1646530203315,3.03211574,89.768,89.696,23.8598]
[1646530203512,5.571,89.767,89.696,23.8598]
[1646530203712,111.5,89.765,89.696,23.8598]
[1646530203914,5.571,89.764,89.696,23.8598]
[1646530207522,5.571,89.764,89.685,2.83613526]
[1646530207523,5.571,89.764,89.681,22.73011941]
[1646530207721,111.5,89.762,89.681,22.73011941]
[1646530207926,111.5,89.76,89.681,22.73011941]
[1646530208129,111.5,89.758,89.681,22.73011941]
[1646530208324,5.572,89.757,89.681,22.73011941]
[1646530208724,6.09641692,89.756,89.681,22.73011941]
[1646530208925,140.5481,89.755,89.68,41.8218]
[1646530209826,146.7881,89.755,89.68,41.8218]
[1646530210528,146.7881,89.755,89.668,22.73011941]
[1646530210728,111.5,89.749,89.668,16.4961]
[1646530210928,5.573,89.748,89.668,16.4961]
[1646530211131,111.5,89.746,89.668,16.4961]
[1646530211329,5.573,89.745,89.668,16.4961]
[1646530211529,111.5,89.743,89.662,24.8773]
[1646530211733,5.573,89.742,89.662,24.8773]
[1646530212128,5.573,89.742,89.663,22.73011941]
[1646530212330,5.573,89.742,89.664,66.81]
[1646530212730,5.573,89.742,89.666,66.81]
[1646530213131,5.573,89.742,89.668,66.81]
[1646530213329,5.573,89.742,89.667,22.73011941]
[1646530213734,5.573,89.742,89.662,24.8773]
[1646530217736,5.573,89.742,89.663,47.21994722]
[1646530220239,5.573,89.742,89.664,66.81]
[1646530221243,5.573,89.742,89.663,66.81]
[1646530221451,111.5,89.741,89.662,24.8773]
[1646530221649,111.5,89.739,89.662,24.8773]
[1646530221943,111.5,89.737,89.662,24.8773]
[1646530222144,111.5,89.735,89.662,24.8773]
[1646530222345,111.5,89.733,89.662,24.8773]
[1646530222566,111.5,89.731,89.662,24.8773]
[1646530222764,111.5,89.731,89.636,19.91828995]
[1646530222964,111.5,89.729,89.637,24.4916]
[1646530223165,111.5,89.727,89.637,24.4916]
[1646530223364,111.5,89.725,89.637,24.4916]
[1646530223566,111.5,89.723,89.637,24.4916]
[1646530223766,111.5,89.721,89.638,2.83613526]
[1646530223969,111.5,89.719,89.638,69.64613526]
[1646530224167,111.5,89.717,89.638,92.37625467]
[1646530224367,111.5,89.715,89.639,2.83613526]
[1646530224566,111.5,89.713,89.639,2.83613526]
[1646530224767,111.5,89.711,89.639,2.83613526]
[1646530224967,111.5,89.709,89.639,2.83613526]
[1646530225167,111.5,89.707,89.639,2.83613526]
[1646530225367,134.5111,89.707,89.639,2.83613526]
[1646530225568,111.5,89.705,89.639,2.83613526]
[1646530225768,23.0111,89.707,89.639,2.83613526]
[1646530225769,111.5,89.703,89.639,2.83613526]
[1646530227170,111.5,89.702,89.639,2.83613526]
[1646530228067,111.5,89.705,89.639,2.83613526]
[1646530228267,111.5,89.703,89.639,2.83613526]
[1646530228468,111.5,89.701,89.639,2.83613526]
[1646530229671,111.5,89.705,89.639,2.83613526]
[1646530229868,111.5,89.703,89.639,2.83613526]
[1646530230068,111.5,89.701,89.639,2.83613526]
[1646530230769,111.5,89.699,89.639,2.83613526]
[1646530230970,111.5,89.697,89.639,2.83613526]
[1646530231169,111.5,89.695,89.639,2.83613526]
[1646530231370,111.5,89.693,89.639,2.83613526]
[1646530231572,111.5,89.691,89.639,2.83613526]
[1646530232672,30.4629,89.692,89.639,2.83613526]
[1646530233474,24.8879,89.692,89.639,2.83613526]
[1646530233876,111.5,89.691,89.637,24.4916]
[1646530234274,24.8879,89.692,89.637,24.4916]
[1646530235174,111.5,89.691,89.637,24.4916]
[1646530235376,24.8879,89.692,89.637,24.4916]
[1646530235976,111.5,89.691,89.637,24.4916]
[1646530236877,5.575,89.69,89.637,24.4916]
[1646530237077,111.5,89.69,89.637,24.4916]
[1646530237278,5.575,89.689,89.637,24.4916]
[1646530237478,5.575,89.691,89.637,24.4916]
[1646530238078,111.5,89.69,89.637,24.4916]
[1646530238278,111.5,89.688,89.637,24.4916]
[1646530238481,111.5,89.686,89.637,24.4916]
[1646530238678,111.5,89.684,89.613,17.0522]
[1646530238979,111.5,89.682,89.625,22.8094]
[1646530239279,9.34,89.69,89.625,22.3094]
[1646530239280,111.5,89.68,89.625,22.3094]
[1646530239478,111.5,89.678,89.625,22.3094]
[1646530242986,111.5,89.676,89.625,22.3094]
[1646530243187,5.577,89.675,89.625,22.3094]
[1646530243387,5.577,89.678,89.625,22.3094]
[1646530243783,22.8538,89.679,89.625,22.3094]
[1646530244283,111.5,89.678,89.625,22.3094]
[1646530244483,111.5,89.676,89.625,22.3094]
[1646530244684,111.5,89.674,89.625,22.3094]
[1646530244982,5.577,89.675,89.625,22.3094]
[1646530244983,111.5,89.672,89.625,22.3094]
[1646530245187,111.5,89.67,89.625,22.3094]
[1646530245385,111.5,89.668,89.625,22.3094]
[1646530245587,8.19,89.697,89.625,22.3094]
[1646530245588,111.5,89.666,89.625,22.3094]
[1646530245885,111.5,89.666,89.599,5.8224264]
[1646530245886,111.5,89.664,89.604,16.5819]
[1646530246085,111.5,89.662,89.593,43.23142607]
[1646530246284,23.9705,89.665,89.593,59.79652607]
[1646530246285,111.5,89.66,89.593,59.79652607]
[1646530246485,111.5,89.658,89.593,40.0961]
[1646530246683,23.9705,89.665,89.593,40.0961]
[1646530246684,111.5,89.656,89.593,40.0961]
[1646530246884,111.5,89.654,89.58,19.70042607]
[1646530247086,111.5,89.652,89.581,23.531]
[1646530247387,111.5,89.65,89.581,23.531]
[1646530247586,111.5,89.648,89.581,23.531]
[1646530248385,111.5,89.648,89.583,131.80042607]
[1646530248588,111.5,89.651,89.583,131.80042607]
[1646530248787,117.079,89.65,89.583,131.80042607]
[1646530248987,5.579,89.65,89.583,131.80042607]
[1646530249189,23.9705,89.653,89.584,66.81]
[1646530249986,111.5,89.652,89.584,66.31]
[1646530250590,111.5,89.652,89.583,131.80042607]
[1646530250787,111.5,89.65,89.583,131.80042607]
[1646530250987,111.5,89.648,89.583,131.80042607]
[1646530251186,23.9705,89.653,89.583,131.80042607]
[1646530251187,111.5,89.646,89.583,131.80042607]
[1646530252187,111.5,89.651,89.583,131.80042607]
[1646530252387,111.5,89.649,89.583,131.80042607]
[1646530252588,111.5,89.647,89.583,131.80042607]
[1646530253390,111.5,89.645,89.583,131.80042607]
[1646530254693,111.5,89.651,89.583,131.80042607]
[1646530254893,111.5,89.649,89.583,131.80042607]
[1646530255093,111.5,89.647,89.583,131.80042607]
[1646530255294,111.5,89.645,89.583,112.1]
[1646530255496,111.5,89.643,89.583,112.1]
[1646530255695,8.33,89.647,89.583,112.1]
[1646530255696,111.5,89.641,89.583,112.1]
[1646530255895,111.5,89.639,89.583,112.1]
[1646530256095,111.5,89.637,89.583,112.1]
[1646530256302,111.5,89.635,89.583,112.1]
[1646530256495,23.4536,89.642,89.583,112.1]
[1646530256496,111.5,89.633,89.583,112.1]
[1646530256703,111.5,89.631,89.583,112.1]
[1646530256896,111.5,89.629,89.583,112.1]
[1646530257095,111.5,89.627,89.583,112.1]
[1646530257296,111.5,89.625,89.583,112.1]
[1646530257698,111.5,89.625,89.581,23.531]
[1646530258698,5.58,89.641,89.581,23.531]
[1646530258699,111.5,89.64,89.581,23.531]
[1646530258899,111.5,89.638,89.581,23.531]
[1646530259098,111.5,89.636,89.581,23.531]
[1646530259301,111.5,89.634,89.581,23.531]
[1646530259498,111.5,89.632,89.581,23.531]
[1646530259701,111.5,89.63,89.581,23.531]
[1646530259901,111.5,89.628,89.581,23.531]
[1646530260100,111.5,89.626,89.581,23.531]
[1646530260299,111.5,89.624,89.581,23.531]
[1646530260713,111.5,89.622,89.581,23.531]
[1646530260901,111.5,89.62,89.581,23.531]
[1646530261101,111.5,89.618,89.581,23.531]
[1646530262301,111.5,89.629,89.581,23.531]
[1646530262500,111.5,89.627,89.581,23.531]
[1646530262701,23.4518,89.631,89.581,23.531]
[1646530262702,111.5,89.625,89.581,23.531]
[1646530262901,5.58,89.626,89.581,23.531]
[1646530262902,111.5,89.623,89.581,23.531]
[1646530263102,111.5,89.621,89.581,23.531]
[1646530263304,111.5,89.619,89.581,23.531]
[1646530263716,111.5,89.617,89.581,23.531]
[1646530264221,111.5,89.615,89.581,23.531]
[1646530265218,111.5,89.629,89.581,23.531]
[1646530265419,111.5,89.627,89.581,23.531]
[1646530265718,111.5,89.625,89.581,23.531]
[1646530265921,111.5,89.623,89.581,23.531]
[1646530266120,111.5,89.621,89.581,23.531]
[1646530266319,111.5,89.619,89.581,23.531]
[1646530266521,111.5,89.617,89.581,23.531]
[1646530266721,111.5,89.615,89.581,23.531]
[1646530267522,111.5,89.615,89.56,64.08042761]
[1646530267722,111.5,89.613,89.561,24.2469]
[1646530267922,111.5,89.611,89.561,24.2469]
[1646530268124,111.5,89.609,89.561,24.2469]
[1646530268322,111.5,89.607,89.561,24.2469]
[1646530269424,5.581,89.613,89.561,24.2469]
[1646530269425,111.5,89.612,89.561,24.2469]
[1646530269723,117.081,89.611,89.561,24.2469]
[1646530270527,5.581,89.611,89.562,66.81]
[1646530270825,5.581,89.631,89.562,66.81]
[1646530271031,30.0221,89.638,89.562,66.81]
[1646530271627,111.5,89.637,89.562,66.81]
[1646530271826,111.5,89.635,89.562,66.81]
[1646530272026,111.5,89.633,89.562,66.81]
[1646530272226,111.5,89.631,89.562,66.81]
[1646530273327,5.58,89.63,89.562,66.81]
[1646530273630,111.5,89.634,89.562,66.81]
[1646530273827,111.5,89.632,89.562,66.81]
[1646530274027,117.08,89.631,89.562,66.81]
[1646530279632,1.51397994,89.633,89.562,66.81]
[1646530280235,1.51397994,89.634,89.562,66.81]
[1646530281239,1.51397994,89.633,89.562,66.81]
[1646530281436,1.51397994,89.632,89.562,66.81]
[1646530281837,1.51397994,89.632,89.564,66.81]
[1646530282039,1.51397994,89.633,89.566,66.81]
[1646530282640,1.51397994,89.633,89.568,66.81]
[1646530282840,1.51397994,89.633,89.569,72.39]
[1646530283541,111.5,89.631,89.569,72.39]
[1646530283743,5.58,89.63,89.569,72.39]
[1646530284641,7.09397994,89.63,89.569,72.39]
[1646530287647,1.51397994,89.629,89.569,72.39]
[1646530287845,5.58,89.628,89.569,72.39]
[1646530288046,24.2956,89.627,89.569,72.39]
[1646530288245,5.58,89.626,89.569,72.39]
[1646530288646,5.58,89.626,89.562,66.81]
[1646530289046,111.5,89.625,89.561,24.2469]
[1646530289248,111.5,89.623,89.561,24.2469]
[1646530289446,1.51397994,89.62,89.561,24.2469]
[1646530289650,1.51397994,89.611,89.561,24.2469]
[1646530290049,1.51397994,89.61,89.561,24.2469]
[1646530290451,1.51397994,89.607,89.5,16.757]
[1646530290651,1.51397994,89.581,89.522,24.7366]
[1646530290851,1.51397994,89.578,89.522,24.7366]
[1646530291052,1.51397994,89.58,89.522,24.7366]
[1646530291360,1.51397994,89.58,89.522,30.3196]
[1646530292351,1.51397994,89.581,89.522,30.3196]
[1646530292552,16.759,89.61,89.522,30.3196]
[1646530292553,1.51397994,89.588,89.522,30.3196]
[1646530292754,111.5,89.586,89.522,30.3196]
[1646530292953,111.5,89.584,89.522,30.3196]
[1646530293354,111.5,89.582,89.522,30.3196]
[1646530298056,117.083,89.581,89.522,30.3196]
[1646530299761,117.083,89.581,89.522,24.7366]
[1646530303662,117.083,89.581,89.523,5.583]
[1646530309987,117.083,89.581,89.522,24.7366]
[1646530312491,117.083,89.581,89.523,5.583]
[1646530314292,15.99,89.58,89.502,5.583]
[1646530314491,15.99,89.58,89.486,5.583]
[1646530314492,1.51397994,89.561,89.486,5.583]
[1646530314690,123.19194243,89.579,89.469,28.157]
[1646530314691,1.51397994,89.548,89.469,28.157]
[1646530314893,111.5,89.546,89.469,28.157]
[1646530315090,1.51397994,89.551,89.469,28.157]
[1646530315091,111.5,89.544,89.469,28.157]
[1646530315291,111.5,89.542,89.469,28.157]
[1646530315492,29.4241,89.543,89.469,28.157]
[1646530315493,111.5,89.54,89.469,28.157]
[1646530315691,111.5,89.538,89.469,28.157]
[1646530315892,1.51397994,89.534,89.469,28.157]
[1646530316093,111.5,89.532,89.469,5.585]
[1646530316293,127.49,89.53,89.46,5.586]
[1646530316492,111.5,89.528,89.434,28.158]
[1646530316698,111.5,89.526,89.434,28.158]
[1646530316892,111.5,89.524,89.434,28.158]
[1646530317097,111.5,89.524,89.435,55.19629416]
[1646530317294,111.5,89.524,89.436,5.587]
[1646530317496,111.5,89.524,89.435,5.587]
[1646530317697,111.5,89.522,89.435,5.587]
[1646530317894,111.5,89.52,89.435,5.587]
[1646530318095,111.5,89.518,89.434,5.587]
[1646530318297,111.5,89.516,89.434,5.587]
[1646530318494,15.99,89.52,89.435,50.02892984]
[1646530318495,111.5,89.514,89.435,50.02892984]
[1646530318695,111.5,89.512,89.435,50.02892984]
[1646530319395,111.5,89.512,89.436,5.588]
[1646530319794,111.5,89.518,89.436,5.588]
[1646530319993,111.5,89.516,89.436,5.588]
[1646530320197,111.5,89.516,89.437,66.81]
[1646530320394,111.5,89.516,89.439,66.81]
[1646530320597,111.5,89.516,89.44,5.587]
[1646530320995,111.5,89.518,89.44,5.587]
[1646530321594,111.5,89.518,89.438,66.81]
[1646530321796,111.5,89.518,89.439,5.587]
[1646530322195,111.5,89.518,89.44,16.7689]
[1646530322396,111.5,89.518,89.441,5.587]
[1646530323597,111.5,89.516,89.441,5.587]
[1646530323897,111.5,89.514,89.441,5.587]
[1646530324100,111.5,89.512,89.441,5.587]
[1646530324298,111.5,89.51,89.441,5.587]
[1646530324497,111.5,89.508,89.441,5.587]
[1646530324698,111.5,89.506,89.441,5.587]
[1646530324897,111.5,89.504,89.441,5.587]
[1646530325300,111.5,89.502,89.44,16.7689]
[1646530326099,111.5,89.502,89.441,5.588]
[1646530326299,111.5,89.515,89.441,5.588]
[1646530326499,111.5,89.513,89.441,5.588]
[1646530326699,111.5,89.511,89.441,5.588]
[1646530327698,111.5,89.51,89.441,5.588]
[1646530328099,5.588,89.518,89.45,16.7669]
[1646530328300,1.51397994,89.537,89.451,72.397]
[1646530328301,5.587,89.536,89.451,72.397]
[1646530328701,46.6571,89.546,89.451,72.397]
[1646530329102,111.5,89.545,89.451,72.397]
[1646530329504,111.5,89.545,89.453,66.81]
[1646530329704,111.5,89.545,89.455,66.81]
[1646530329904,111.5,89.545,89.457,66.81]
[1646530330104,111.5,89.543,89.459,66.81]
[1646530330304,46.6571,89.546,89.459,66.81]
[1646530330305,111.5,89.541,89.46,5.586]
[1646530330507,111.5,89.539,89.46,5.586]
[1646530330705,111.5,89.537,89.46,5.586]
[1646530330905,111.5,89.535,89.46,5.586]
[1646530331106,111.5,89.533,89.463,66.81]
[1646530331307,117.086,89.532,89.463,66.81]
[1646530332206,117.086,89.532,89.463,66.31]
[1646530333406,117.086,89.532,89.464,5.086]
[1646530334208,117.086,89.532,89.462,45.89628859]
[1646530334209,117.086,89.532,89.463,5.586]
[1646530335409,117.086,89.532,89.462,45.89628859]
[1646530336511,117.086,89.532,89.463,5.586]
[1646530336714,111.5,89.53,89.453,5.586]
[1646530337012,1.51397994,89.526,89.452,23.3859]
[1646530337314,111.5,89.524,89.452,23.3859]
[1646530337523,111.5,89.522,89.452,73.45502152]
[1646530337912,111.5,89.52,89.452,73.45502152]
[1646530338214,111.5,89.518,89.452,73.45502152]
[1646530338412,111.5,89.516,89.452,73.45502152]
[1646530338612,111.5,89.514,89.452,73.45502152]
[1646530338831,111.5,89.512,89.452,23.3859]
[1646530339033,15.99,89.53,89.452,23.3859]
[1646530339034,111.5,89.51,89.452,23.3859]
[1646530339434,5.587,89.509,89.452,23.3859]
[1646530339834,5.587,89.509,89.453,47.14659858]
[1646530340035,1.51397994,89.523,89.453,47.14659858]
[1646530340036,117.087,89.522,89.454,5.587]
[1646530340837,1.51397994,89.518,89.454,5.587]
[1646530341236,1.51397994,89.519,89.454,5.587]
[1646530342741,1.51397994,89.518,89.454,5.587]
[1646530342942,1.51397994,89.506,89.454,5.587]
[1646530343444,1.51397994,89.507,89.454,5.587]
[1646530343844,1.51397994,89.508,89.454,5.587]
[1646530344542,1.51397994,89.509,89.454,5.587]
[1646530344742,1.51397994,89.517,89.454,5.587]
[1646530344941,1.51397994,89.515,89.454,5.587]
[1646530345142,1.51397994,89.516,89.454,5.587]
[1646530345743,1.51397994,89.517,89.454,5.587]
[1646530346442,1.51397994,89.518,89.454,5.587]
[1646530346643,1.51397994,89.517,89.454,5.587]